bitfinex-derivatives/quotes_ETHF0:USTF0_20260112
["timestamp","ask_amount","ask_price","bid_price","bid_amount"]
[1768194956599,0.8634883,3159.6,3158.6,0.13888859]
[1768194956803,0.12947196,3160.3,3158.6,0.13888859]
[1768194957000,0.86383898,3160.2,3158.6,0.13888859]
[1768194957301,0.86383898,3160.1,3158.6,0.13888859]
[1768194957496,0.86383898,3160.0,3158.6,0.13888859]
[1768194957694,0.86383898,3159.9,3158.6,0.13888859]
[1768194957894,0.86383898,3159.8,3158.6,0.13888859]
[1768194958093,0.86383898,3159.7,3158.6,0.13888859]
[1768194958296,0.86383898,3159.6,3158.6,0.13888859]
[1768194958497,0.12947196,3160.3,3158.6,0.13888859]
[1768194958696,0.86420306,3160.2,3158.6,0.13888859]
[1768194958898,0.86420306,3160.1,3158.6,0.13888859]
[1768194959091,0.86420306,3160.0,3158.6,0.13888859]
[1768194959297,0.86420306,3159.9,3158.6,0.13888859]
[1768194959492,0.86420306,3159.8,3158.6,0.13888859]
[1768194959698,0.86420306,3159.7,3158.6,0.13888859]
[1768194960004,0.86420306,3159.6,3158.6,0.13888859]
[1768194960306,0.86420306,3159.5,3158.6,0.13888859]
[1768194960503,0.96364784,3160.1,3158.6,0.13888859]
[1768194960697,0.86469404,3160.0,3158.6,0.13888859]
[1768194960898,0.86469404,3159.9,3158.6,0.13888859]
[1768194961098,0.86469404,3159.8,3158.6,0.13888859]
[1768194961298,0.86469404,3159.7,3158.6,0.13888859]
[1768194961499,0.86469404,3159.6,3158.6,0.13888859]
[1768194961698,0.86469404,3159.5,3158.6,0.13888859]
[1768194961900,0.96364784,3160.1,3158.6,0.13888859]
[1768194962201,0.8647301,3160.0,3158.6,0.13888859]
[1768194962500,0.8647301,3159.9,3158.6,0.13888859]
[1768194962700,0.8647301,3159.8,3158.6,0.13888859]
[1768194962901,0.8647301,3159.7,3158.6,0.13888859]
[1768194963201,0.8647301,3159.6,3158.6,0.13888859]
[1768194963508,0.8647301,3159.5,3158.6,0.13888859]
[1768194963708,0.96364784,3160.1,3158.6,0.13888859]
[1768194963908,0.86473849,3160.0,3158.6,0.13888859]
[1768194964110,0.86473849,3159.9,3158.6,0.13888859]
[1768194964409,0.86473849,3159.8,3158.6,0.13888859]
[1768194964710,0.86473849,3159.7,3158.6,0.13888859]
[1768194964910,0.96364784,3160.1,3158.6,0.13888859]
[1768194965112,0.86474843,3160.0,3158.6,0.13888859]
[1768194965317,0.96364784,3160.1,3158.6,0.13888859]
[1768194965318,0.86474843,3159.9,3158.6,0.13888859]
[1768194965503,0.86474843,3159.8,3158.6,0.13888859]
[1768194965703,0.86474843,3159.7,3158.6,0.13888859]
[1768194965909,0.86474843,3159.6,3158.6,0.13888859]
[1768194966110,0.96364784,3160.1,3158.6,0.13888859]
[1768194966306,0.86475778,3160.0,3158.6,0.13888859]
[1768194966506,0.86475778,3159.9,3158.6,0.13888859]
[1768194966706,0.86475778,3159.8,3158.6,0.13888859]
[1768194966904,0.86475778,3159.7,3158.6,0.13888859]
[1768194967105,0.86475778,3159.6,3158.6,0.13888859]
[1768194967311,0.86475778,3159.5,3158.6,0.13888859]
[1768194967513,0.96364784,3160.1,3158.6,0.13888859]
[1768194967812,0.86477016,3160.0,3158.6,0.13888859]
[1768194968004,0.86477016,3159.9,3158.6,0.13888859]
[1768194968203,0.96364784,3160.1,3158.6,0.13888859]
[1768194968204,0.86477016,3159.8,3158.6,0.13888859]
[1768194968403,0.86477016,3159.7,3158.6,0.13888859]
[1768194968604,0.86477016,3159.6,3158.6,0.13888859]
[1768194968807,0.86477016,3159.5,3158.6,0.13888859]
[1768194969005,0.96364784,3160.1,3158.6,0.13888859]
[1768194969304,0.86468894,3160.0,3158.6,0.13888859]
[1768194969508,0.86468894,3159.9,3158.6,0.13888859]
[1768194969712,0.86468894,3159.8,3158.6,0.13888859]
[1768194969910,0.86468894,3159.7,3158.6,0.13888859]
[1768194970112,0.86468894,3159.6,3158.6,0.13888859]
[1768194970311,0.86468894,3159.5,3158.6,0.13888859]
[1768194970512,0.96364784,3160.1,3158.6,0.13888859]
[1768194970713,0.86459055,3160.0,3158.6,0.13888859]
[1768194970911,0.86459055,3159.9,3158.6,0.13888859]
[1768194971113,0.86459055,3159.8,3158.6,0.13888859]
[1768194971315,0.86459055,3159.7,3158.6,0.13888859]
[1768194971511,0.86459055,3159.6,3158.6,0.13888859]
[1768194971716,0.86459055,3159.5,3158.6,0.13888859]
[1768194972013,0.96364784,3160.1,3158.6,0.13888859]
[1768194972217,0.8645564,3160.0,3158.6,0.13888859]
[1768194972418,0.8645564,3159.9,3158.6,0.13888859]
[1768194972617,0.8645564,3159.8,3158.6,0.13888859]
[1768194972916,0.8645564,3159.7,3158.6,0.13888859]
[1768194973117,0.8645564,3159.6,3158.6,0.13888859]
[1768194973319,0.8645564,3159.5,3158.6,0.13888859]
[1768194973509,0.96364784,3160.1,3158.6,0.13888859]
[1768194973704,0.86450749,3160.0,3158.6,0.13888859]
[1768194973911,0.86450749,3159.9,3158.6,0.13888859]
[1768194974113,0.86450749,3159.8,3158.6,0.13888859]
[1768194974319,0.86450749,3159.7,3158.6,0.13888859]
[1768194974509,0.86450749,3159.6,3158.6,0.13888859]
[1768194974716,0.86450749,3159.5,3158.6,0.13888859]
[1768194974909,0.96364784,3160.1,3158.6,0.13888859]
[1768194975111,0.86448867,3160.0,3158.6,0.13888859]
[1768194975304,0.86448867,3159.9,3158.6,0.13888859]
[1768194975510,0.86448867,3159.8,3158.6,0.13888859]
[1768194975715,0.86448867,3159.7,3158.6,0.13888859]
[1768194975909,0.86448867,3159.6,3158.6,0.13888859]
[1768194976110,1.09461176,3160.5,3158.6,0.13888859]
[1768194976418,0.99540738,3160.4,3158.6,0.13888859]
[1768194976618,0.86444346,3160.3,3158.6,0.13888859]
[1768194976804,0.86444346,3160.2,3158.6,0.13888859]
[1768194977009,0.86444346,3160.1,3158.6,0.13888859]
[1768194977209,0.86444346,3160.0,3158.6,0.13888859]
[1768194977416,0.86444346,3159.9,3158.6,0.13888859]
[1768194977618,0.86444346,3159.8,3158.6,0.13888859]
[1768194977813,0.86444346,3159.7,3158.6,0.13888859]
[1768194978017,0.86444346,3159.6,3158.6,0.13888859]
[1768194978214,0.13096392,3160.4,3158.6,0.13888859]
[1768194978420,0.86444316,3160.3,3158.6,0.13888859]
[1768194978621,0.86444316,3160.2,3158.6,0.13888859]
[1768194978808,0.86444316,3160.1,3158.6,0.13888859]
[1768194979014,0.86444316,3160.0,3158.6,0.13888859]
[1768194979318,0.86444316,3159.9,3158.6,0.13888859]
[1768194979518,0.86444316,3159.8,3158.6,0.13888859]
[1768194979717,0.86444316,3159.7,3158.6,0.13888859]
[1768194979919,0.13096392,3160.4,3158.6,0.13888859]
[1768194980120,0.86440594,3160.3,3158.6,0.13888859]
[1768194980321,0.86440594,3160.2,3158.6,0.13888859]
[1768194980523,0.86440594,3160.1,3158.6,0.13888859]
[1768194980723,0.86440594,3160.0,3158.6,0.13888859]
[1768194980918,0.86440594,3159.9,3158.6,0.13888859]
[1768194981224,0.86440594,3159.8,3158.6,0.13888859]
[1768194981425,0.86440594,3159.7,3158.6,0.13888859]
[1768194981626,0.13096392,3160.4,3158.6,0.13888859]
[1768194981827,0.86434482,3160.3,3158.6,0.13888859]
[1768194982128,0.86434482,3160.2,3158.6,0.13888859]
[1768194982423,0.86434482,3160.1,3158.6,0.13888859]
[1768194982627,0.86434482,3160.0,3158.6,0.13888859]
[1768194982829,0.86434482,3159.9,3158.6,0.13888859]
[1768194983025,0.86434482,3159.8,3158.6,0.13888859]
[1768194983326,0.86434482,3159.7,3158.6,0.13888859]
[1768194983523,0.13096392,3160.4,3158.6,0.13888859]
[1768194983726,0.86429292,3160.3,3158.6,0.13888859]
[1768194984027,0.86429292,3160.2,3158.6,0.13888859]
[1768194984226,0.86429292,3160.1,3158.6,0.13888859]
[1768194984429,0.86429292,3160.0,3158.6,0.13888859]
[1768194984621,0.86429292,3159.9,3158.6,0.13888859]
[1768194984827,0.86429292,3159.8,3158.6,0.13888859]
[1768194985028,0.86429292,3159.7,3158.6,0.13888859]
[1768194985229,0.13096392,3160.4,3158.6,0.13888859]
[1768194985524,0.96352099,3160.2,3158.9,0.96352099]
[1768194985730,0.86425722,3160.1,3158.9,0.96352099]
[1768194985929,0.86425722,3160.0,3158.9,0.96352099]
[1768194986127,0.86425722,3159.9,3158.9,0.96352099]
[1768194986330,0.86425722,3159.8,3158.9,0.96352099]
[1768194986525,0.86425722,3159.7,3158.9,0.96352099]
[1768194986726,0.96352099,3160.2,3158.9,0.96352099]
[1768194986926,0.86422651,3160.1,3158.9,0.96352099]
[1768194987131,0.86422651,3160.0,3158.9,0.96352099]
[1768194987338,0.86422651,3159.9,3158.9,0.96352099]
[1768194987536,0.86422651,3159.8,3158.9,0.96352099]
[1768194987725,0.86422651,3159.7,3158.9,0.96352099]
[1768194987928,0.96352099,3160.2,3158.9,0.96352099]
[1768194988130,0.86420795,3160.1,3158.9,0.96352099]
[1768194988441,0.96352099,3160.2,3158.9,0.96352099]
[1768194988442,0.86420795,3160.0,3158.9,0.96352099]
[1768194988640,0.86420795,3159.9,3158.9,0.96352099]
[1768194988937,0.86420795,3159.8,3158.9,0.96352099]
[1768194989140,0.96352099,3160.3,3158.9,0.96352099]
[1768194989440,0.863626,3160.2,3158.9,0.96352099]
[1768194989631,0.863626,3160.1,3158.9,0.96352099]
[1768194989833,0.863626,3160.0,3158.9,0.96352099]
[1768194990032,0.863626,3159.9,3158.9,0.96352099]
[1768194990233,0.863626,3159.8,3158.9,0.96352099]
[1768194990440,0.96352099,3160.3,3158.9,0.96352099]
[1768194990637,0.86357886,3160.2,3158.9,0.96352099]
[1768194990841,0.86357886,3160.1,3158.9,0.96352099]
[1768194991042,0.86357886,3160.0,3158.9,0.96352099]
[1768194991242,0.86357886,3159.9,3158.9,0.96352099]
[1768194991544,0.86357886,3159.8,3158.9,0.96352099]
[1768194991842,0.96352099,3160.3,3158.9,0.96352099]
[1768194992043,0.8635549,3160.2,3158.9,0.96352099]
[1768194992244,0.8635549,3160.1,3158.9,0.96352099]
[1768194992445,0.8635549,3160.0,3158.9,0.96352099]
[1768194992645,0.8635549,3159.9,3158.9,0.96352099]
[1768194992957,0.8635549,3159.8,3158.9,0.96352099]
[1768194993136,0.96352099,3160.3,3158.9,0.96352099]
[1768194993429,0.86351734,3160.2,3158.9,0.96352099]
[1768194993633,0.86351734,3160.1,3158.9,0.96352099]
[1768194993833,0.86351734,3160.0,3158.9,0.96352099]
[1768194994030,0.86351734,3159.9,3158.9,0.96352099]
[1768194994230,0.86351734,3159.8,3158.9,0.96352099]
[1768194994442,0.96352099,3160.1,3158.9,0.96352099]
[1768194994643,0.86350411,3160.0,3158.7,0.96352099]
[1768194994842,0.86350411,3159.9,3158.7,0.96352099]
[1768194995144,0.86350411,3159.8,3158.7,0.96352099]
[1768194995344,0.86350411,3159.7,3158.7,0.96352099]
[1768194995644,0.96352099,3160.1,3158.7,0.96352099]
[1768194995836,0.86349393,3160.0,3158.7,0.96352099]
[1768194996038,0.86349393,3159.9,3158.7,0.96352099]
[1768194996240,0.86349393,3159.8,3158.7,0.96352099]
[1768194996441,0.86349393,3159.7,3158.7,0.96352099]
[1768194996747,0.96352099,3160.1,3158.7,1.10632087]
[1768194996944,0.86348635,3160.0,3158.7,1.10632087]
[1768194997244,0.86348635,3159.9,3158.7,1.10632087]
[1768194997444,0.86348635,3159.8,3158.7,1.10632087]
[1768194997643,0.86348635,3159.7,3158.7,1.10632087]
[1768194997841,0.96352099,3160.1,3158.7,1.10632087]
[1768194998044,0.86348046,3160.0,3158.7,1.10632087]
[1768194998245,0.86348046,3159.9,3158.7,1.10632087]
[1768194998444,0.86348046,3159.8,3158.7,1.10632087]
[1768194998646,0.86348046,3159.7,3158.7,1.10632087]
[1768194998846,0.96352099,3160.1,3158.7,1.10632087]
[1768194999047,0.86350781,3160.0,3158.7,1.10632087]
[1768194999247,0.86350781,3159.9,3158.7,1.10632087]
[1768194999448,0.86350781,3159.8,3158.7,1.10632087]
[1768194999643,0.86350781,3159.7,3158.7,1.10632087]
[1768194999850,0.96352099,3160.1,3158.7,1.10632087]
[1768195000148,0.86354099,3160.0,3158.7,1.10632087]
[1768195000349,0.86354099,3159.9,3158.7,1.10632087]
[1768195000548,0.86354099,3159.8,3158.7,1.10632087]
[1768195000750,0.96352099,3160.2,3158.9,0.96352099]
[1768195001048,0.86358289,3160.1,3158.9,0.96352099]
[1768195001241,0.86358289,3160.0,3158.9,0.96352099]
[1768195001441,0.86358289,3159.9,3158.9,0.96352099]
[1768195001639,0.13087453,3160.8,3159.5,1.10632087]
[1768195001942,0.96352099,3160.6,3159.5,0.14279988]
[1768195002447,0.96352099,3160.4,3159.1,1.10632087]
[1768195003045,0.96352099,3160.2,3159.1,0.14279988]
[1768195006652,0.96352099,3160.3,3159.1,0.14279988]
[1768195007859,1.09439552,3160.8,3159.1,0.14279988]
[1768195008051,0.96352099,3160.6,3159.4,0.96352099]
[1768195008556,0.96352099,3160.6,3159.2,1.10632087]
[1768195012050,0.96352099,3160.6,3159.3,0.14279988]
[1768195013663,0.8594612,3160.5,3159.3,0.14279988]
[1768195013851,0.8594612,3160.4,3159.3,0.14279988]
[1768195014149,0.8594612,3160.3,3159.3,0.14279988]
[1768195014349,0.8594612,3160.2,3159.3,0.14279988]
[1768195014553,0.96352099,3160.6,3159.3,0.14279988]
[1768195014845,0.85944724,3160.5,3159.3,0.14279988]
[1768195015051,0.85944724,3160.4,3159.3,0.14279988]
[1768195015251,0.96352099,3160.6,3159.3,0.14279988]
[1768195015252,0.85944724,3160.3,3159.3,0.14279988]
[1768195015453,0.85944724,3160.2,3159.3,0.14279988]
[1768195015653,0.96352099,3160.6,3159.3,0.14279988]
[1768195015860,0.85943671,3160.5,3159.3,0.14279988]
[1768195016060,0.85943671,3160.4,3159.3,0.14279988]
[1768195016264,0.85943671,3160.3,3159.3,0.14279988]
[1768195016461,0.85943671,3160.2,3159.3,0.14279988]
[1768195016661,0.96352099,3160.6,3159.3,0.14279988]
[1768195016861,0.85943724,3160.5,3159.3,0.14279988]
[1768195017060,0.85943724,3160.4,3159.3,0.14279988]
[1768195017263,0.85943724,3160.3,3159.3,0.14279988]
[1768195017560,0.85943724,3160.2,3159.3,0.14279988]
[1768195017865,0.96352099,3160.6,3159.3,0.14279988]
[1768195018055,0.85944656,3160.5,3159.3,0.14279988]
[1768195018257,0.85944656,3160.4,3159.3,0.14279988]
[1768195018458,0.85944656,3160.3,3159.3,0.14279988]
[1768195018660,0.85944656,3160.2,3159.3,0.14279988]
[1768195018861,0.96352099,3160.6,3159.3,0.14279988]
[1768195019160,0.85873685,3160.5,3159.3,0.14279988]
[1768195019359,0.85873685,3160.4,3159.3,0.14279988]
[1768195019559,0.85873685,3160.3,3159.3,0.14279988]
[1768195019864,0.85873685,3160.2,3159.3,0.14279988]
[1768195020064,0.96352099,3160.6,3159.3,0.14279988]
[1768195020264,0.8587682,3160.5,3159.3,0.14279988]
[1768195020465,0.8587682,3160.4,3159.3,0.14279988]
[1768195020762,0.8587682,3160.3,3159.3,0.14279988]
[1768195020963,0.8587682,3160.2,3159.3,0.14279988]
[1768195021166,0.96352099,3160.6,3159.3,0.14279988]
[1768195021366,0.85878222,3160.5,3159.3,0.14279988]
[1768195021567,0.85878222,3160.4,3159.3,0.14279988]
[1768195021767,0.85878222,3160.3,3159.3,0.14279988]
[1768195021966,0.85878222,3160.2,3159.3,0.14279988]
[1768195022169,0.96352099,3160.6,3159.3,0.14279988]
[1768195022470,0.85881098,3160.5,3159.3,0.14279988]
[1768195022663,0.85881098,3160.4,3159.3,0.14279988]
[1768195022970,0.85881098,3160.3,3159.3,0.14279988]
[1768195023270,0.96352099,3160.6,3159.3,0.14279988]
[1768195023468,0.85883199,3160.5,3159.3,0.14279988]
[1768195023665,0.85883199,3160.4,3159.3,0.14279988]
[1768195023875,0.85883199,3160.3,3159.3,0.14279988]
[1768195024075,0.96352099,3160.5,3159.3,0.14279988]
[1768195024373,0.85886989,3160.4,3159.8,0.96352099]
[1768195024672,0.00302433,3160.9,3159.8,0.96352099]
[1768195024870,0.00302433,3160.9,3160.0,0.96352099]
[1768195025171,0.00302433,3160.9,3160.0,1.10653148]
[1768195027472,0.00302433,3160.9,3160.1,0.14301049]
[1768195027669,0.00302433,3160.9,3160.2,1.10653148]
[1768195028977,0.96352099,3161.5,3160.2,1.10653148]
[1768195029168,0.85749826,3161.4,3160.5,0.14301049]
[1768195029371,0.96352099,3162.1,3160.8,0.14301049]
[1768195029676,0.85704078,3162.0,3160.8,0.14301049]
[1768195029868,0.85704078,3161.9,3160.8,0.1457633]
[1768195030069,0.85704078,3161.8,3160.8,0.1457633]
[1768195030268,0.96751364,3162.0,3160.8,0.1457633]
[1768195030571,0.85644444,3161.9,3160.8,1.10928429]
[1768195030877,0.00399265,3162.0,3160.8,1.10928429]
[1768195031078,0.00399265,3162.0,3160.9,0.14318049]
[1768195034381,0.96352099,3161.9,3160.9,0.14318049]
[1768195034576,0.00399265,3162.0,3160.9,0.14318049]
[1768195034765,0.96352099,3161.7,3160.8,0.00275281]
[1768195035381,0.00399265,3162.0,3160.8,0.00275281]
[1768195035567,0.96352099,3161.8,3160.8,0.00275281]
[1768195036076,0.96352099,3161.6,3160.8,0.00275281]
[1768195036973,0.96352099,3161.3,3160.8,0.00275281]
[1768195037177,0.96352099,3160.9,3160.1,0.14318049]
[1768195037373,0.96352099,3161.2,3160.1,0.14318049]
[1768195038281,0.96352099,3161.2,3160.1,0.14609077]
[1768195039081,0.96352099,3161.4,3160.1,0.14609077]
[1768195046487,0.12653722,3161.7,3160.1,0.14609077]
[1768195046689,0.96352099,3161.2,3160.1,0.14609077]
[1768195047281,1.08940758,3161.7,3160.1,0.14609077]
[1768195047484,0.85549926,3161.6,3160.1,0.14609077]
[1768195047784,1.08940758,3161.7,3160.1,0.14609077]
[1768195047989,0.85549654,3161.6,3160.1,0.14609077]
[1768195048290,1.08940758,3161.7,3160.1,0.14609077]
[1768195048478,0.85573396,3161.6,3160.1,0.14609077]
[1768195048684,0.00399265,3162.0,3160.1,0.30453077]
[1768195048885,0.85784097,3161.9,3160.2,0.14318049]
[1768195049087,0.85784097,3161.8,3160.2,0.14318049]
[1768195049288,0.00399265,3162.0,3160.2,0.14318049]
[1768195049592,0.8580889,3161.9,3160.4,0.14318049]
[1768195049782,0.00399265,3162.0,3160.8,0.14318049]
[1768195073702,0.8598335,3161.9,3160.8,0.14318049]
[1768195073904,0.8598335,3161.8,3160.8,0.14318049]
[1768195074109,0.8598335,3161.7,3160.8,0.14318049]
[1768195074407,0.8598335,3161.6,3160.8,0.14318049]
[1768195074608,0.96686301,3162.0,3160.8,0.14318049]
[1768195074807,0.86001141,3161.9,3160.8,0.14318049]
[1768195074998,0.86001141,3161.8,3160.8,0.14318049]
[1768195075199,0.86001141,3161.7,3160.8,0.14318049]
[1768195075499,0.86001141,3161.6,3160.8,0.14318049]
[1768195075699,0.96686301,3162.0,3160.8,0.14318049]
[1768195075906,0.86015073,3161.9,3160.8,0.14318049]
[1768195076104,0.86015073,3161.8,3160.8,0.14318049]
[1768195076302,0.86033155,3161.7,3160.8,0.14318049]
[1768195076498,0.86033155,3161.6,3160.8,0.14318049]
[1768195076701,0.96686301,3162.0,3160.8,0.14318049]
[1768195076702,0.00399265,3162.0,3160.8,0.14318049]
[1768195076902,0.8603022,3161.9,3160.8,0.14318049]
[1768195077102,0.8603022,3161.8,3160.8,0.14318049]
[1768195077401,0.8603022,3161.7,3160.8,0.14318049]
[1768195077704,0.00399265,3162.0,3160.8,0.14318049]
[1768195077905,0.86043669,3161.9,3160.8,0.14318049]
[1768195078209,0.00399265,3162.0,3160.8,0.14318049]
[1768195078407,0.86070482,3161.9,3160.8,0.14318049]
[1768195078617,0.00399265,3162.0,3160.8,0.14318049]
[1768195078806,0.8607472,3161.9,3160.8,0.14318049]
[1768195079106,0.00399265,3162.0,3160.8,0.14318049]
[1768195079309,0.86074693,3161.9,3160.8,0.14318049]
[1768195079605,0.00399265,3162.0,3160.8,0.14318049]
[1768195079805,0.86086208,3161.9,3160.8,0.14318049]
[1768195080008,0.00399265,3162.0,3160.8,0.14318049]
[1768195080205,0.86086208,3161.9,3160.8,0.14318049]
[1768195080405,0.00399265,3162.0,3160.8,0.14318049]
[1768195080608,0.86084487,3161.9,3160.8,0.14318049]
[1768195080809,0.00399265,3162.0,3160.8,0.14318049]
[1768195081111,0.86084487,3161.9,3160.8,0.14318049]
[1768195081309,0.00399265,3162.0,3160.8,0.14318049]
[1768195081512,0.86084268,3161.9,3160.8,0.14318049]
[1768195081713,0.00399265,3162.0,3160.8,0.14318049]
[1768195081915,0.86084271,3161.9,3160.8,0.14318049]
[1768195082116,0.00399265,3162.0,3160.8,0.14318049]
[1768195082318,0.86085812,3161.9,3160.8,0.14318049]
[1768195082521,0.00399265,3162.0,3160.8,0.14318049]
[1768195082816,0.86084093,3161.9,3160.8,0.14318049]
[1768195083012,0.00399265,3162.0,3160.8,0.14318049]
[1768195083216,0.86085624,3161.9,3160.8,0.14318049]
[1768195083420,0.00399265,3162.0,3160.8,0.14318049]
[1768195083618,0.86083882,3161.9,3160.8,0.14318049]
[1768195083809,0.00399265,3162.0,3160.8,0.14318049]
[1768195084009,0.86083896,3161.9,3160.8,0.14318049]
[1768195084204,0.00399265,3162.0,3160.8,0.14318049]
[1768195084418,0.86083623,3161.9,3160.8,0.14318049]
[1768195084617,0.00399265,3162.0,3160.8,0.14318049]
[1768195084817,0.8608362,3161.9,3160.8,0.14318049]
[1768195085021,0.00399265,3162.0,3160.8,0.14318049]
[1768195085320,0.86085171,3161.9,3160.8,0.14318049]
[1768195085619,0.00399265,3162.0,3160.8,0.14318049]
[1768195085919,0.86082152,3161.9,3160.8,0.14318049]
[1768195086124,0.00399265,3162.0,3160.8,0.14318049]
[1768195086321,0.86083385,3161.9,3160.8,0.14318049]
[1768195086518,0.00399265,3162.0,3160.8,0.14318049]
[1768195086820,0.86081172,3161.9,3160.8,0.14318049]
[1768195087022,0.00399265,3162.0,3160.8,0.14318049]
[1768195087222,0.86082332,3161.9,3160.8,0.14318049]
[1768195087424,0.00399265,3162.0,3160.8,0.14318049]
[1768195087615,0.86079595,3161.9,3160.8,0.14318049]
[1768195087817,0.00399265,3162.0,3160.8,0.14318049]
[1768195094925,0.86070408,3161.9,3160.8,0.14318049]
[1768195095125,0.00399265,3162.0,3160.8,0.14318049]
[1768195095429,0.8607136,3161.9,3160.8,0.14318049]
[1768195095624,0.00399265,3162.0,3160.8,0.14318049]
[1768195095827,0.86069303,3161.9,3160.8,0.14318049]
[1768195096025,0.00399265,3162.0,3160.8,0.14318049]
[1768195096222,0.86070304,3161.9,3160.8,0.14318049]
[1768195096421,0.00399265,3162.0,3160.8,0.14318049]
[1768195096725,0.86068262,3161.9,3160.8,0.14318049]
[1768195096919,0.00399265,3162.0,3160.8,0.14318049]
[1768195097125,0.86068246,3161.9,3160.8,0.14318049]
[1768195097329,0.00399265,3162.0,3160.8,0.14318049]
[1768195097530,0.86067312,3161.9,3160.8,0.14318049]
[1768195097729,0.00399265,3162.0,3160.8,0.14318049]
[1768195097922,0.86067285,3161.9,3160.8,0.14318049]
[1768195098120,0.00399265,3162.0,3160.8,0.14318049]
[1768195098323,0.86068449,3161.9,3160.8,0.14318049]
[1768195098527,0.00399265,3162.0,3160.8,0.14318049]
[1768195098728,0.86066336,3161.9,3160.8,0.14318049]
[1768195098929,0.00399265,3162.0,3160.8,0.14318049]
[1768195099230,0.86066336,3161.9,3160.8,0.14318049]
[1768195099423,0.00399265,3162.0,3160.8,0.14318049]
[1768195099719,0.86065434,3161.9,3160.8,0.14318049]
[1768195099920,0.00399265,3162.0,3160.8,0.14318049]
[1768195100117,0.86065434,3161.9,3160.8,0.14318049]
[1768195100332,0.00399265,3162.0,3160.8,0.14318049]
[1768195100627,2.99598858,3163.0,3160.8,0.14318049]
[1768195100628,0.13993925,3162.8,3161.3,0.96287036]
[1768195100933,0.13993925,3162.8,3161.4,2.729]
[1768195101627,0.14361004,3162.8,3161.4,2.729]
[1768195107538,0.00367079,3162.8,3161.7,0.15836]
[1768195108435,2.83769858,3164.3,3162.0,0.96287036]
[1768195108628,0.13993925,3164.2,3162.1,0.15834]
[1768195109334,0.13993925,3163.6,3162.3,0.9614827]
[1768195109525,0.14268411,3163.6,3162.3,0.9614827]
[1768195112437,0.14268411,3163.6,3162.2,2.726]
[1768195112827,0.14268411,3163.6,3162.3,0.9614827]
[1768195123653,0.14268411,3163.6,3162.7,0.9614827]
[1768195123951,0.14268411,3163.6,3162.7,0.9648173]
[1768195125240,0.00274486,3163.6,3162.7,0.9648173]
[1768195129053,0.00274486,3163.6,3162.9,0.9614827]
[1768195129445,0.14830665,3164.0,3162.9,0.9614827]
[1768195130550,0.15228875,3164.0,3162.9,0.9614827]
[1768195136358,0.15228875,3164.0,3162.7,0.0033346]
[1768195136657,0.15228875,3164.0,3162.8,0.9614827]
[1768195137760,0.15228875,3164.0,3162.7,0.0033346]
[1768195138264,0.14830665,3163.8,3162.7,0.0033346]
[1768195139165,0.14830665,3163.8,3162.8,0.9614827]
[1768195141361,0.14830665,3163.8,3162.7,0.0033346]
[1768195143459,0.14830665,3163.8,3162.7,0.9648173]
[1768195151470,0.14830665,3163.8,3162.7,0.0033346]
[1768195151672,0.14830665,3163.8,3162.7,0.9648173]
[1768195152472,0.14830665,3163.8,3162.9,0.9614827]
[1768195160682,0.0039821,3164.0,3162.9,0.9614827]
[1768195165788,0.0039821,3164.0,3163.1,0.9614827]
[1768195168882,0.0039821,3164.0,3163.3,0.9614827]
[1768195169286,0.17839377,3164.4,3163.3,0.9614827]
[1768195170090,0.17839377,3164.4,3163.5,0.9614827]
[1768195170385,0.00294141,3164.4,3163.7,0.9614827]
[1768195170590,0.17839377,3164.8,3163.7,0.9614827]
[1768195171391,0.17839377,3164.8,3163.3,0.15828]
[1768195171692,0.18124299,3164.8,3163.3,0.15828]
[1768195172389,0.18124299,3164.8,3163.3,2.90828]
[1768195185008,0.00284922,3164.8,3163.6,1.06326203]
[1768195185208,0.00284922,3164.8,3164.0,0.96067645]
[1768195185505,0.17759039,3165.2,3164.1,2.773]
[1768195186503,0.18058113,3165.2,3164.1,2.773]
[1768195190817,0.00299074,3165.2,3164.1,2.773]
[1768195194913,1.17342326,3165.8,3164.1,2.8775077]
[1768195195114,0.17759039,3165.7,3164.1,2.8775077]
[1768195195819,0.18111201,3165.7,3164.1,2.8775077]
[1768195196019,0.18111201,3165.7,3164.1,3.73367645]
[1768195201024,0.18111201,3165.7,3164.1,2.773]
[1768195202336,0.18111201,3165.7,3164.0,0.15824]
[1768195205930,0.19745648,3165.4,3163.4,3.80176481]
[1768195206233,0.19745648,3165.4,3163.4,2.84108836]
[1768195206431,0.19745648,3165.4,3163.4,2.755]
[1768195208735,0.19745648,3165.4,3163.3,0.15828]
[1768195208938,0.19745648,3165.4,3163.5,2.759]
[1768195215441,0.19745648,3165.4,3163.8,0.12732018]
[1768195215646,0.00352162,3165.7,3163.9,0.12747958]
[1768195217245,0.19236973,3165.7,3163.9,0.12747958]
[1768195222549,0.19236973,3165.7,3163.9,1.08815603]
[1768195222849,0.19236973,3165.7,3163.9,1.24640603]
[1768195223049,0.19236973,3165.7,3164.0,0.28910512]
[1768195225441,0.19236973,3165.7,3164.1,0.13134147]
[1768195232048,0.19236973,3165.7,3164.3,0.96067645]
[1768195233452,0.19236973,3165.7,3164.7,0.96007935]
[1768195234055,0.00352162,3165.7,3164.9,0.96007935]
[1768195234358,0.00352162,3165.7,3165.1,0.96007935]
[1768195234550,0.00352162,3165.7,3165.1,0.9626916]
[1768195235154,0.00352162,3165.7,3165.1,0.00261225]
[1768195237348,0.00352162,3165.7,3165.1,0.9626916]
[1768195237553,0.00352162,3165.7,3165.1,0.00261225]
[1768195237948,1.17342326,3165.8,3165.1,0.00261225]
[1768195238150,0.24816755,3167.5,3166.1,1.9201587]
[1768195238654,0.24816755,3167.5,3165.4,2.84108836]
[1768195238655,0.20016858,3167.5,3166.2,0.15813]
[1768195238854,0.20016858,3167.5,3166.3,3.70607935]
[1768195239054,0.20303538,3167.5,3166.6,0.96007935]
[1768195239254,0.0028668,3167.5,3166.6,0.96007935]
[1768195239455,0.0028668,3167.5,3166.8,0.96007935]
[1768195239659,0.0028668,3167.5,3166.5,3.70507935]
[1768195239660,0.20303538,3167.5,3166.5,3.70507935]
[1768195239855,0.20303538,3167.5,3166.5,0.96007935]
[1768195240561,0.20303538,3167.5,3165.9,0.15815]
[1768195240562,0.20303538,3167.5,3166.0,40.8]
[1768195240754,0.20303538,3167.5,3166.2,0.96007935]
[1768195241148,0.20303538,3167.5,3166.1,5.907]
[1768195241353,0.20303538,3167.5,3166.3,0.96007935]
[1768195242865,0.20303538,3167.5,3166.5,0.96007935]
[1768195243862,0.20303538,3167.5,3166.7,0.96007935]
[1768195246365,0.20303538,3167.5,3166.0,40.8]
[1768195246567,0.20303538,3167.5,3166.4,0.96007935]
[1768195246768,0.20303538,3167.5,3166.4,3.71307935]
[1768195248163,0.20016858,3167.4,3166.1,0.96007935]
[1768195248470,0.20016858,3167.4,3165.3,0.96007935]
[1768195248773,0.20016858,3167.2,3165.4,40.8]
[1768195248969,0.20016858,3167.2,3166.1,0.96007935]
[1768195251971,0.20016858,3167.2,3166.0,0.96007935]
[1768195252166,0.20016858,3167.2,3165.9,0.96007935]
[1768195252762,0.20016858,3166.8,3165.5,0.96007935]
[1768195252961,0.20016858,3166.8,3165.3,0.15818]
[1768195252962,0.20016858,3166.8,3165.8,0.96007935]